{"text_format":"3","workbook":"xlsx","n_sheets":3,"sheets":["Začátek","Rozpočet na dárky a sledování","Data"],"not_rendered":{"charts":1,"defined_names":1},"read":"whole","date_system":"1900"}

{"sheet":"Začátek","index":0,"n_rows":7,"n_cols":2,"rows_kept":7}
[null,"Informace o šabloně"]
[null,"Pomocí této šablony můžete zaznamenávat nákupy dárků a sledovat je v porovnání s rozpočtem."]
[null,"Zadejte do tabulky jména rodiny a přátel, dárkové položky, rozpočtované a utracené částky a poznámky a vyberte příležitost a měsíc události."]
[null,"Graf měsíčního přehledu se automaticky aktualizuje."]
[null,"Poznámka: "]
[null,"Další pokyny jsou k dispozici na listu ROZPOČET NA DÁRKY A SLEDOVÁNÍ ve sloupci A. Tento text je záměrně skrytý. Pokud ho chcete odebrat, vyberte sloupec A a stiskněte klávesu DELETE. Pokud tento text chcete zobrazit, vyberte sloupec A a změňte barvu písma."]
[null,"Další informace o tabulce můžete získat tak, že v tabulce stisknete klávesy SHIFT a F10, vyberete možnost TABULKA a pak vyberete ALTERNATIVNÍ TEXT."]

{"sheet":"Rozpočet na dárky a sledování","index":1,"n_rows":10,"n_cols":13,"rows_kept":10,"merged":[[0,1,0,4],[0,5,0,12],[1,1,1,2],[2,1,2,12],[3,1,3,3]]}
["Na tomto listu si můžete vytvořit osobní Rozpočet na dárky a sledování. V buňce vpravo je název listu a tip najdete v buňce F1. V buňkách v tomto sloupci jsou užitečné pokyny k tomu, jak tento list používat.","Rozpočet na dárky a sledování",{"$nulls":3},"Vyplňte co nejvíc na začátku každého nového roku. Zadejte jména rodiny a přátel, vyberte příležitost k obdarování, vyberte měsíc události a zadejte, kolik chcete utratit. Každá osoba se může v tabulce zobrazit vícekrát pro všechny různé příležitosti (narozeniny, svátek, oslava narození dítěte atd.)."]
["Popisek měsíčního přehledu je v buňce vpravo a tip najdete v buňce D2.","Měsíční přehled",null,"Pomocí grafu se můžete podívat na nadcházející měsíce, abyste mohli plánovat dopředu. Zaznamenejte své nákupy, abyste je mohli sledovat a porovnat s rozpočtem."]
["Sloupcový graf rozpočtovaných částek s překrytím spojnicového grafu utracené částky je v buňce vpravo.","Sloupcový graf rozpočtovaných částek s překrytím spojnicového grafu utracené částky je v této buňce."]
["Rozpočet na dárky a sledování je v buňce vpravo.","Rozpočet na dárky a sledování"]
["Zadejte podrobnosti do tabulky Sledování rozpočtu, která začíná v buňce napravo.","Kdo","Příležitost","Měsíc","Částka\nzahrnuté do rozpočtu","Částka\nutraceno","Dárek","Odkaz na dárek","V obchodě/\nOnline","Zakoupeno?","Zabaleno?","Doručeno?","Poznámky"]
[null,"Jméno 1","Narozeniny","Červen",{"v":50,"d":"50 Kč"},{"v":30,"d":"30 Kč"},"Boty","Prodávající","Online","Ano","Ne","Ne","16. 6., Lístky na film"]
[null,"Jméno 2","Výročí","Duben",{"v":20,"d":"20 Kč"},{"v":20,"d":"20 Kč"},"Kočka","Prodávající","V obchodě","Ne","Ne","Ne","Zmínil, že má rád psy."]
[null,"Jméno 3","Svátky","Červenec",{"v":50,"d":"50 Kč"},{"v":70,"d":"70 Kč"},"Sluchátka","Prodávající","Online","Ne","Ne","Ne","Věci na koleje"]
[null,"Jméno 4","Narozeniny","Leden",{"v":20,"d":"20 Kč"},{"v":30,"d":"30 Kč"},"Hra","Prodávající","V obchodě","Ano","Ano","Ano"]
[null,"Jméno 5","Svatby","Červen",{"v":100,"d":"100 Kč"},{"v":150,"d":"150 Kč"},"Křišťálová váza","Prodávající","V obchodě","Ano","Ano","Ne"]

{"sheet":"Data","index":2,"n_rows":13,"n_cols":8,"rows_kept":13,"hidden":true}
["Příležitosti",null,"Datum","Datum","Částka rozpočtu\nNarozeniny","Částka rozpočtu\nSvátky","Částka rozpočtu\nJiné","Utracená částka"]
["Narozeniny",null,"Leden","I",{"$f":"SUMIFS(BudgetTracker[Částka\nzahrnuté do rozpočtu],BudgetTracker[Měsíc],\"Leden\",BudgetTracker[Příležitost],\"Narozeniny\")","v":{"v":20,"d":"20 Kč"}},{"$f":"SUMIFS(BudgetTracker[Částka\nzahrnuté do rozpočtu],BudgetTracker[Měsíc],\"Leden\",BudgetTracker[Příležitost],\"Svátky\")","v":{"v":0,"d":"0 Kč"}},{"$f":"SUMIFS(BudgetTracker[Částka\nzahrnuté do rozpočtu],BudgetTracker[Měsíc],\"Leden\",BudgetTracker[Příležitost],\"<>Svátky\",BudgetTracker[Příležitost],\"<>Narozeniny\")","v":{"v":0,"d":"0 Kč"}},{"$f":"SUMIFS(BudgetTracker[Částka\nutraceno],BudgetTracker[Měsíc],\"Leden\")","v":{"v":30,"d":"30 Kč"}}]
["Svátky",null,"Únor","II",{"$f":"SUMIFS(BudgetTracker[Částka\nzahrnuté do rozpočtu],BudgetTracker[Měsíc],\"Únor\",BudgetTracker[Příležitost],\"Narozeniny\")","v":{"v":0,"d":"0 Kč"}},{"$f":"SUMIFS(BudgetTracker[Částka\nzahrnuté do rozpočtu],BudgetTracker[Měsíc],\"Únor\",BudgetTracker[Příležitost],\"Svátky\")","v":{"v":0,"d":"0 Kč"}},{"$f":"SUMIFS(BudgetTracker[Částka\nzahrnuté do rozpočtu],BudgetTracker[Měsíc],\"Únor\",BudgetTracker[Příležitost],\"<>Svátky\",BudgetTracker[Příležitost],\"<>Narozeniny\")","v":{"v":0,"d":"0 Kč"}},{"$f":"SUMIFS(BudgetTracker[Částka\nutraceno],BudgetTracker[Měsíc],\"Únor\")","v":{"v":0,"d":"0 Kč"}}]
["Výročí",null,"Březen","III",{"$f":"SUMIFS(BudgetTracker[Částka\nzahrnuté do rozpočtu],BudgetTracker[Měsíc],\"Březen\",BudgetTracker[Příležitost],\"Narozeniny\")","v":{"v":0,"d":"0 Kč"}},{"$f":"SUMIFS(BudgetTracker[Částka\nzahrnuté do rozpočtu],BudgetTracker[Měsíc],\"Březen\",BudgetTracker[Příležitost],\"Svátky\")","v":{"v":0,"d":"0 Kč"}},{"$f":"SUMIFS(BudgetTracker[Částka\nzahrnuté do rozpočtu],BudgetTracker[Měsíc],\"Březen\",BudgetTracker[Příležitost],\"<>Svátky\",BudgetTracker[Příležitost],\"<>Narozeniny\")","v":{"v":0,"d":"0 Kč"}},{"$f":"SUMIFS(BudgetTracker[Částka\nutraceno],BudgetTracker[Měsíc],\"Březen\")","v":{"v":0,"d":"0 Kč"}}]
["Svatby",null,"Duben","IV",{"$f":"SUMIFS(BudgetTracker[Částka\nzahrnuté do rozpočtu],BudgetTracker[Měsíc],\"Duben\",BudgetTracker[Příležitost],\"Narozeniny\")","v":{"v":0,"d":"0 Kč"}},{"$f":"SUMIFS(BudgetTracker[Částka\nzahrnuté do rozpočtu],BudgetTracker[Měsíc],\"Duben\",BudgetTracker[Příležitost],\"Svátky\")","v":{"v":0,"d":"0 Kč"}},{"$f":"SUMIFS(BudgetTracker[Částka\nzahrnuté do rozpočtu],BudgetTracker[Měsíc],\"Duben\",BudgetTracker[Příležitost],\"<>Svátky\",BudgetTracker[Příležitost],\"<>Narozeniny\")","v":{"v":20,"d":"20 Kč"}},{"$f":"SUMIFS(BudgetTracker[Částka\nutraceno],BudgetTracker[Měsíc],\"Duben\")","v":{"v":20,"d":"20 Kč"}}]
["Rozlučkový večírek pro nevěstu",null,"Květen","V",{"$f":"SUMIFS(BudgetTracker[Částka\nzahrnuté do rozpočtu],BudgetTracker[Měsíc],\"Květen\",BudgetTracker[Příležitost],\"Narozeniny\")","v":{"v":0,"d":"0 Kč"}},{"$f":"SUMIFS(BudgetTracker[Částka\nzahrnuté do rozpočtu],BudgetTracker[Měsíc],\"Květen\",BudgetTracker[Příležitost],\"Svátky\")","v":{"v":0,"d":"0 Kč"}},{"$f":"SUMIFS(BudgetTracker[Částka\nzahrnuté do rozpočtu],BudgetTracker[Měsíc],\"Květen\",BudgetTracker[Příležitost],\"<>Svátky\",BudgetTracker[Příležitost],\"<>Narozeniny\")","v":{"v":0,"d":"0 Kč"}},{"$f":"SUMIFS(BudgetTracker[Částka\nutraceno],BudgetTracker[Měsíc],\"Květen\")","v":{"v":0,"d":"0 Kč"}}]
["Oslavy narození dítěte",null,"Červen","VI",{"$f":"SUMIFS(BudgetTracker[Částka\nzahrnuté do rozpočtu],BudgetTracker[Měsíc],\"Červen\",BudgetTracker[Příležitost],\"Narozeniny\")","v":{"v":50,"d":"50 Kč"}},{"$f":"SUMIFS(BudgetTracker[Částka\nzahrnuté do rozpočtu],BudgetTracker[Měsíc],\"Červen\",BudgetTracker[Příležitost],\"Svátky\")","v":{"v":0,"d":"0 Kč"}},{"$f":"SUMIFS(BudgetTracker[Částka\nzahrnuté do rozpočtu],BudgetTracker[Měsíc],\"Červen\",BudgetTracker[Příležitost],\"<>Svátky\",BudgetTracker[Příležitost],\"<>Narozeniny\")","v":{"v":100,"d":"100 Kč"}},{"$f":"SUMIFS(BudgetTracker[Částka\nutraceno],BudgetTracker[Měsíc],\"Červen\")","v":{"v":180,"d":"180 Kč"}}]
["Promoce",null,"Červenec","VII",{"$f":"SUMIFS(BudgetTracker[Částka\nzahrnuté do rozpočtu],BudgetTracker[Měsíc],\"Červenec\",BudgetTracker[Příležitost],\"Narozeniny\")","v":{"v":0,"d":"0 Kč"}},{"$f":"SUMIFS(BudgetTracker[Částka\nzahrnuté do rozpočtu],BudgetTracker[Měsíc],\"Červenec\",BudgetTracker[Příležitost],\"Svátky\")","v":{"v":50,"d":"50 Kč"}},{"$f":"SUMIFS(BudgetTracker[Částka\nzahrnuté do rozpočtu],BudgetTracker[Měsíc],\"Červenec\",BudgetTracker[Příležitost],\"<>Svátky\",BudgetTracker[Příležitost],\"<>Narozeniny\")","v":{"v":0,"d":"0 Kč"}},{"$f":"SUMIFS(BudgetTracker[Částka\nutraceno],BudgetTracker[Měsíc],\"Červenec\")","v":{"v":70,"d":"70 Kč"}}]
["Jiné",null,"Srpen","VIII",{"$f":"SUMIFS(BudgetTracker[Částka\nzahrnuté do rozpočtu],BudgetTracker[Měsíc],\"Srpen\",BudgetTracker[Příležitost],\"Narozeniny\")","v":{"v":0,"d":"0 Kč"}},{"$f":"SUMIFS(BudgetTracker[Částka\nzahrnuté do rozpočtu],BudgetTracker[Měsíc],\"Srpen\",BudgetTracker[Příležitost],\"Svátky\")","v":{"v":0,"d":"0 Kč"}},{"$f":"SUMIFS(BudgetTracker[Částka\nzahrnuté do rozpočtu],BudgetTracker[Měsíc],\"Srpen\",BudgetTracker[Příležitost],\"<>Svátky\",BudgetTracker[Příležitost],\"<>Narozeniny\")","v":{"v":0,"d":"0 Kč"}},{"$f":"SUMIFS(BudgetTracker[Částka\nutraceno],BudgetTracker[Měsíc],\"Srpen\")","v":{"v":0,"d":"0 Kč"}}]
[null,null,"Září","IX",{"$f":"SUMIFS(BudgetTracker[Částka\nzahrnuté do rozpočtu],BudgetTracker[Měsíc],\"Září\",BudgetTracker[Příležitost],\"Narozeniny\")","v":{"v":0,"d":"0 Kč"}},{"$f":"SUMIFS(BudgetTracker[Částka\nzahrnuté do rozpočtu],BudgetTracker[Měsíc],\"Září\",BudgetTracker[Příležitost],\"Svátky\")","v":{"v":0,"d":"0 Kč"}},{"$f":"SUMIFS(BudgetTracker[Částka\nzahrnuté do rozpočtu],BudgetTracker[Měsíc],\"Září\",BudgetTracker[Příležitost],\"<>Svátky\",BudgetTracker[Příležitost],\"<>Narozeniny\")","v":{"v":0,"d":"0 Kč"}},{"$f":"SUMIFS(BudgetTracker[Částka\nutraceno],BudgetTracker[Měsíc],\"Září\")","v":{"v":0,"d":"0 Kč"}}]
[null,null,"Říjen","X",{"$f":"SUMIFS(BudgetTracker[Částka\nzahrnuté do rozpočtu],BudgetTracker[Měsíc],\"Říjen\",BudgetTracker[Příležitost],\"Narozeniny\")","v":{"v":0,"d":"0 Kč"}},{"$f":"SUMIFS(BudgetTracker[Částka\nzahrnuté do rozpočtu],BudgetTracker[Měsíc],\"Říjen\",BudgetTracker[Příležitost],\"Svátky\")","v":{"v":0,"d":"0 Kč"}},{"$f":"SUMIFS(BudgetTracker[Částka\nzahrnuté do rozpočtu],BudgetTracker[Měsíc],\"Říjen\",BudgetTracker[Příležitost],\"<>Svátky\",BudgetTracker[Příležitost],\"<>Narozeniny\")","v":{"v":0,"d":"0 Kč"}},{"$f":"SUMIFS(BudgetTracker[Částka\nutraceno],BudgetTracker[Měsíc],\"Říjen\")","v":{"v":0,"d":"0 Kč"}}]
[null,null,"Listopad","XI",{"$f":"SUMIFS(BudgetTracker[Částka\nzahrnuté do rozpočtu],BudgetTracker[Měsíc],\"Listopad\",BudgetTracker[Příležitost],\"Narozeniny\")","v":{"v":0,"d":"0 Kč"}},{"$f":"SUMIFS(BudgetTracker[Částka\nzahrnuté do rozpočtu],BudgetTracker[Měsíc],\"Listopad\",BudgetTracker[Příležitost],\"Svátky\")","v":{"v":0,"d":"0 Kč"}},{"$f":"SUMIFS(BudgetTracker[Částka\nzahrnuté do rozpočtu],BudgetTracker[Měsíc],\"Listopad\",BudgetTracker[Příležitost],\"<>Svátky\",BudgetTracker[Příležitost],\"<>Narozeniny\")","v":{"v":0,"d":"0 Kč"}},{"$f":"SUMIFS(BudgetTracker[Částka\nutraceno],BudgetTracker[Měsíc],\"Listopad\")","v":{"v":0,"d":"0 Kč"}}]
[null,null,"Prosinec","XII",{"$f":"SUMIFS(BudgetTracker[Částka\nzahrnuté do rozpočtu],BudgetTracker[Měsíc],\"Prosinec\",BudgetTracker[Příležitost],\"Narozeniny\")","v":{"v":0,"d":"0 Kč"}},{"$f":"SUMIFS(BudgetTracker[Částka\nzahrnuté do rozpočtu],BudgetTracker[Měsíc],\"Prosinec\",BudgetTracker[Příležitost],\"Svátky\")","v":{"v":0,"d":"0 Kč"}},{"$f":"SUMIFS(BudgetTracker[Částka\nzahrnuté do rozpočtu],BudgetTracker[Měsíc],\"Prosinec\",BudgetTracker[Příležitost],\"<>Svátky\",BudgetTracker[Příležitost],\"<>Narozeniny\")","v":{"v":0,"d":"0 Kč"}},{"$f":"SUMIFS(BudgetTracker[Částka\nutraceno],BudgetTracker[Měsíc],\"Prosinec\")","v":{"v":0,"d":"0 Kč"}}]